[Event "*** Titled Tuesday Blitz"]
[Site "Chess.com"]
[Date "2020.05.12"]
[Round "8"]
[White "VerdeNotte"]
[Black "Hikaru"]
[Result "0-1"]
[WhiteElo "2883"]
[BlackElo "3245"]
[TimeControl "180+1"]
[EndTime "11:33:49 PDT"]
[Termination "Hikaru won by resignation"]

1. e4 {[%clk 0:03:00.9]} 1... c6 {[%clk 0:02:59.5]} 2. d4 {[%clk 0:02:59.9]}
2... d5 {[%clk 0:03:00.4]} 3. e5 {[%clk 0:03:00.4]} 3... Bf5 {[%clk 0:02:59.9]}
4. h4 {[%clk 0:03:00.4]} 4... h5 {[%clk 0:02:59.1]} 5. c4 {[%clk 0:03:00.4]}
5... dxc4 {[%clk 0:02:56.8]} 6. Bxc4 {[%clk 0:02:58.9]} 6... e6 {[%clk
0:02:57.3]} 7. Ne2 {[%clk 0:02:57]} 7... Ne7 {[%clk 0:02:52.5]} 8. Bg5 {[%clk
0:02:48.8]} 8... Qb6 {[%clk 0:02:47.9]} 9. Qd2 {[%clk 0:02:37.4]} 9... Nd7
{[%clk 0:02:43.4]} 10. Nbc3 {[%clk 0:02:32.1]} 10... O-O-O {[%clk 0:02:38.3]}
11. Qe3 {[%clk 0:02:14.8]} 11... Bg6 {[%clk 0:02:22.4]} 12. O-O {[%clk
0:02:06.2]} 12... Re8 {[%clk 0:02:18]} 13. Qd2 {[%clk 0:01:44]} 13... Nf5 {[%clk
0:02:13.1]} 14. a3 {[%clk 0:01:38.8]} 14... f6 {[%clk 0:02:09.6]} 15. Na4 {[%clk
0:01:28.9]} 15... Qc7 {[%clk 0:02:07.5]} 16. exf6 {[%clk 0:01:20.3]} 16... gxf6
{[%clk 0:02:07.6]} 17. Bf4 {[%clk 0:01:19.8]} 17... Bd6 {[%clk 0:02:04.4]} 18.
Rfe1 {[%clk 0:01:09.3]} 18... Nxh4 {[%clk 0:01:56.6]} 19. Nc5 {[%clk 0:00:48.5]}
19... Bf5 {[%clk 0:01:51]} 20. Bxd6 {[%clk 0:00:22.4]} 20... Qxd6 {[%clk
0:01:50.9]} 21. Qb4 {[%clk 0:00:18.9]} 21... Nb6 {[%clk 0:01:35.3]} 22. a4
{[%clk 0:00:12.8]} 22... Rhg8 {[%clk 0:01:35.5]} 23. Ng3 {[%clk 0:00:11.8]}
23... Rxg3 {[%clk 0:01:35.8]} 24. fxg3 {[%clk 0:00:11.8]} 24... Qxg3 {[%clk
0:01:36.7]} 25. Re2 {[%clk 0:00:09.3]} 25... Nf3+ {[%clk 0:01:26]} 26. Kf1
{[%clk 0:00:09.2]} 26... Nxd4 {[%clk 0:01:26.5]} 27. Bxe6+ {[%clk 0:00:06.3]}
27... Nxe6 {[%clk 0:01:24.1]} 28. Rae1 {[%clk 0:00:05.1]} 28... Re7 {[%clk
0:00:46.5]} 29. Nxe6 {[%clk 0:00:04.8]} 29... Nd5 {[%clk 0:00:47.1]} 30. Qa3
{[%clk 0:00:02.4]} 30... Qxa3 {[%clk 0:00:45.3]} 31. bxa3 {[%clk 0:00:03.3]}
31... Bd3 {[%clk 0:00:45.8]} 32. Kf2 {[%clk 0:00:03.7]} 32... Bxe2 {[%clk
0:00:46.3]} 33. Rxe2 {[%clk 0:00:04.6]} 33... Nc3 {[%clk 0:00:46.5]} 34. Re1
{[%clk 0:00:02.5]} 34... Nxa4 {[%clk 0:00:46]} 35. g3 {[%clk 0:00:02.5]} 35...
b5 {[%clk 0:00:44.2]} 36. Nf4 {[%clk 0:00:02.7]} 36... Rxe1 {[%clk 0:00:44]} 37.
Kxe1 {[%clk 0:00:03.6]} 37... Nc5 {[%clk 0:00:44.2]} 38. Nxh5 {[%clk 0:00:03.7]}
38... Ne4 {[%clk 0:00:44.8]} 39. Ke2 {[%clk 0:00:02.7]} 39... a5 {[%clk
0:00:44.9]} 40. Ke3 {[%clk 0:00:03.1]} 40... b4 {[%clk 0:00:36.7]} 41. axb4
{[%clk 0:00:02.2]} 41... a4 {[%clk 0:00:36.8]} 42. Kd3 {[%clk 0:00:02.7]} 42...
f5 {[%clk 0:00:30.1]} 43. Kc2 {[%clk 0:00:01.9]} 43... Kb7 {[%clk 0:00:30.7]}
44. Kb2 {[%clk 0:00:02.4]} 44... Kb6 {[%clk 0:00:31.4]} 45. Ka3 {[%clk
0:00:02.9]} 45... Kb5 {[%clk 0:00:31.9]} 46. Nf4 {[%clk 0:00:03.4]} 46... Nxg3
{[%clk 0:00:31.9]} 47. Ne6 {[%clk 0:00:03.3]} 47... Ne2 {[%clk 0:00:31.2]} 48.
Nc7+ {[%clk 0:00:03.7]} 48... Kc4 {[%clk 0:00:31.1]} 49. Kxa4 {[%clk 0:00:03.2]}
49... f4 {[%clk 0:00:31.5]} 50. Ne8 {[%clk 0:00:03.8]} 50... f3 {[%clk
0:00:31.2]} 51. Nf6 {[%clk 0:00:03.3]} 51... Nc3+ {[%clk 0:00:22.9]} 52. Ka5
{[%clk 0:00:03.3]} 52... Nd5 {[%clk 0:00:13.4]} 53. Ng4 {[%clk 0:00:03.7]} 53...
Kd4 {[%clk 0:00:13.7]} 54. b5 {[%clk 0:00:03.6]} 54... c5 {[%clk 0:00:14.2]} 55.
b6 {[%clk 0:00:03.8]} 55... Nxb6 {[%clk 0:00:14.6]} 56. Kxb6 {[%clk 0:00:04.7]}
56... c4 {[%clk 0:00:15.3]} 57. Kb5 {[%clk 0:00:05.1]} 57... c3 {[%clk
0:00:15.8]} 58. Nh6 {[%clk 0:00:03.2]} 58... c2 {[%clk 0:00:15.8]} 59. Nf5+
{[%clk 0:00:04.1]} 59... Kd3 {[%clk 0:00:16.5]} 0-1

[Event "*** Titled Tuesday Blitz"]
[Site "Chess.com"]
[Date "2020.05.12"]
[Round "8"]
[White "Kezin_Roman"]
[Black "Fy_Rakotomaharo"]
[Result "1-0"]
[WhiteElo "2799"]
[BlackElo "2653"]
[TimeControl "180+1"]
[EndTime "11:33:50 PDT"]
[Termination "Kezin_Roman won by resignation"]

1. d4 {[%clk 0:03:00.9]} 1... Nf6 {[%clk 0:02:59.9]} 2. c4 {[%clk 0:03:01.3]}
2... g6 {[%clk 0:03:00]} 3. Nc3 {[%clk 0:03:00.9]} 3... d5 {[%clk 0:03:00.4]} 4.
cxd5 {[%clk 0:03:00.1]} 4... Nxd5 {[%clk 0:03:01.3]} 5. e4 {[%clk 0:03:00.7]}
5... Nxc3 {[%clk 0:03:01.3]} 6. bxc3 {[%clk 0:03:01.6]} 6... Bg7 {[%clk
0:03:02]} 7. Nf3 {[%clk 0:03:02]} 7... c5 {[%clk 0:03:02.4]} 8. Be3 {[%clk
0:03:02.4]} 8... Qa5 {[%clk 0:03:00.3]} 9. Qd2 {[%clk 0:03:01.6]} 9... O-O
{[%clk 0:02:58.9]} 10. Rc1 {[%clk 0:02:59.8]} 10... Nd7 {[%clk 0:02:57.8]} 11.
Bd3 {[%clk 0:02:58.2]} 11... b6 {[%clk 0:02:55.5]} 12. O-O {[%clk 0:02:56.9]}
12... e6 {[%clk 0:02:53.1]} 13. Qe2 {[%clk 0:02:40.7]} 13... Bb7 {[%clk
0:02:42.6]} 14. Nd2 {[%clk 0:02:40.4]} 14... cxd4 {[%clk 0:02:37.6]} 15. cxd4
{[%clk 0:02:41.3]} 15... Rfc8 {[%clk 0:01:58.6]} 16. Nc4 {[%clk 0:02:38.7]}
16... Qb4 {[%clk 0:01:58.9]} 17. e5 {[%clk 0:02:23.6]} 17... Ba6 {[%clk
0:01:53.8]} 18. Nd6 {[%clk 0:02:20.6]} 18... Bxd3 {[%clk 0:01:53.1]} 19. Qxd3
{[%clk 0:02:21.5]} 19... Rxc1 {[%clk 0:01:47]} 20. Rxc1 {[%clk 0:02:22.4]} 20...
Bf8 {[%clk 0:01:38.3]} 21. Ne4 {[%clk 0:02:07.2]} 21... Be7 {[%clk 0:01:31.3]}
22. g3 {[%clk 0:01:58.4]} 22... Rd8 {[%clk 0:01:30.6]} 23. Qc2 {[%clk
0:01:29.8]} 23... b5 {[%clk 0:01:13.7]} 24. Qc7 {[%clk 0:01:23.8]} 24... Nb6
{[%clk 0:00:52.4]} 25. Nf6+ {[%clk 0:00:56.2]} 25... Bxf6 {[%clk 0:00:38.6]} 26.
exf6 {[%clk 0:00:57.1]} 26... Qd6 {[%clk 0:00:36.2]} 27. Qxa7 {[%clk 0:00:53.7]}
27... Nc4 {[%clk 0:00:36.4]} 28. Bf4 {[%clk 0:00:29.8]} 28... Qxd4 {[%clk
0:00:30.6]} 29. Qxd4 {[%clk 0:00:30.7]} 29... Rxd4 {[%clk 0:00:30.8]} 30. Rb1
{[%clk 0:00:31.2]} 30... Rd5 {[%clk 0:00:14.7]} 31. a4 {[%clk 0:00:18]} 31... g5
{[%clk 0:00:14.7]} 32. Be3 {[%clk 0:00:18.4]} 32... Nxe3 {[%clk 0:00:05.6]} 33.
fxe3 {[%clk 0:00:19.3]} 33... b4 {[%clk 0:00:04.2]} 34. Rxb4 {[%clk 0:00:17.9]}
34... h6 {[%clk 0:00:04.7]} 35. Rb2 {[%clk 0:00:07.7]} 35... Ra5 {[%clk
0:00:04.1]} 36. Ra2 {[%clk 0:00:05.8]} 36... Kh7 {[%clk 0:00:04.6]} 37. Kf2
{[%clk 0:00:05.5]} 37... Kg6 {[%clk 0:00:05.1]} 38. Ke2 {[%clk 0:00:06.4]} 38...
Kxf6 {[%clk 0:00:05.5]} 39. Kd3 {[%clk 0:00:07.3]} 39... Kf5 {[%clk 0:00:05.7]}
40. Kc4 {[%clk 0:00:01.6]} 40... Ke4 {[%clk 0:00:05.5]} 41. Ra3 {[%clk
0:00:02.5]} 41... Rf5 {[%clk 0:00:04.4]} 42. a5 {[%clk 0:00:03.4]} 42... Rf1
{[%clk 0:00:04.1]} 43. a6 {[%clk 0:00:03.7]} 43... Rc1+ {[%clk 0:00:05]} 44. Kb5
{[%clk 0:00:04.1]} 44... Rc8 {[%clk 0:00:05.9]} 45. a7 {[%clk 0:00:04.2]} 45...
Ra8 {[%clk 0:00:06.5]} 46. Kc6 {[%clk 0:00:03.7]} 46... f5 {[%clk 0:00:07.4]}
47. Kb7 {[%clk 0:00:04]} 47... Rxa7+ {[%clk 0:00:07.7]} 48. Rxa7 {[%clk
0:00:04.9]} 48... e5 {[%clk 0:00:08.4]} 49. Ra5 {[%clk 0:00:03.9]} 49... f4
{[%clk 0:00:07.9]} 50. exf4 {[%clk 0:00:04.8]} 50... exf4 {[%clk 0:00:08.1]} 51.
gxf4 {[%clk 0:00:05.7]} 51... Kxf4 {[%clk 0:00:09]} 52. Kc6 {[%clk 0:00:05.6]}
52... Kg4 {[%clk 0:00:09.3]} 53. Kd5 {[%clk 0:00:06.5]} 53... Kh3 {[%clk
0:00:10.2]} 54. Ke4 {[%clk 0:00:06.5]} 54... Kxh2 {[%clk 0:00:10.7]} 55. Kf5
{[%clk 0:00:06.4]} 55... Kh3 {[%clk 0:00:10.2]} 56. Ra6 {[%clk 0:00:06.8]} 56...
g4 {[%clk 0:00:11.1]} 57. Rxh6+ {[%clk 0:00:06.7]} 57... Kg3 {[%clk 0:00:12]}
58. Rg6 {[%clk 0:00:07.1]} 1-0

[Event "*** Titled Tuesday Blitz"]
[Site "Chess.com"]
[Date "2020.05.12"]
[Round "8"]
[White "levallem"]
[Black "jonaszmb"]
[Result "0-1"]
[WhiteElo "2160"]
[BlackElo "2509"]
[TimeControl "180+1"]
[EndTime "11:33:52 PDT"]
[Termination "jonaszmb won on time"]

1. d4 {[%clk 0:03:00.9]} 1... d5 {[%clk 0:02:59.8]} 2. c4 {[%clk 0:02:59.6]}
2... Bf5 {[%clk 0:03:00]} 3. cxd5 {[%clk 0:02:58.7]} 3... Bxb1 {[%clk
0:02:59.8]} 4. Rxb1 {[%clk 0:02:58.2]} 4... Qxd5 {[%clk 0:02:59.4]} 5. b3 {[%clk
0:02:54.8]} 5... Nc6 {[%clk 0:02:58.8]} 6. Nf3 {[%clk 0:02:54.2]} 6... O-O-O
{[%clk 0:02:57.3]} 7. e3 {[%clk 0:02:25.4]} 7... e5 {[%clk 0:02:57.2]} 8. Bc4
{[%clk 0:02:21.4]} 8... Bb4+ {[%clk 0:02:42.1]} 9. Bd2 {[%clk 0:02:20.4]} 9...
Qa5 {[%clk 0:02:41.3]} 10. d5 {[%clk 0:02:08.8]} 10... e4 {[%clk 0:02:00.2]} 11.
Ng5 {[%clk 0:01:54.5]} 11... Nf6 {[%clk 0:02:00.4]} 12. Nxf7 {[%clk 0:01:48.6]}
12... Nxd5 {[%clk 0:01:54.8]} 13. Nxd8 {[%clk 0:01:42.5]} 13... Rxd8 {[%clk
0:01:55.7]} 14. Bxb4 {[%clk 0:01:30.8]} 14... Qxb4+ {[%clk 0:01:50.7]} 15. Kf1
{[%clk 0:00:52.3]} 15... Nxe3+ {[%clk 0:01:45.5]} 16. fxe3 {[%clk 0:00:50.7]}
16... Rxd1+ {[%clk 0:01:46]} 17. Rxd1 {[%clk 0:00:51.3]} 17... Qc3 {[%clk
0:01:24.6]} 18. Ke2 {[%clk 0:00:49.9]} 18... a6 {[%clk 0:01:03.5]} 19. Rhf1
{[%clk 0:00:47.4]} 19... Kb8 {[%clk 0:01:04]} 20. Rd2 {[%clk 0:00:40.4]} 20...
Ne5 {[%clk 0:00:59.9]} 21. Bd5 {[%clk 0:00:34.8]} 21... Ng4 {[%clk 0:00:53]} 22.
Rf8+ {[%clk 0:00:22.2]} 22... Ka7 {[%clk 0:00:52.6]} 23. Bc4 {[%clk 0:00:20.4]}
23... Qxe3+ {[%clk 0:00:41.6]} 24. Kd1 {[%clk 0:00:20.2]} 24... Qg1+ {[%clk
0:00:41.7]} 25. Kc2 {[%clk 0:00:20.2]} 25... Ne3+ {[%clk 0:00:32.4]} 26. Kb2
{[%clk 0:00:18.9]} 26... Nxc4+ {[%clk 0:00:31.1]} 27. bxc4 {[%clk 0:00:19.8]}
27... Qb6+ {[%clk 0:00:31.2]} 28. Kc2 {[%clk 0:00:19.4]} 28... e3 {[%clk
0:00:29.8]} 29. Re2 {[%clk 0:00:19]} 29... Qg6+ {[%clk 0:00:27.6]} 30. Kc3
{[%clk 0:00:17.4]} 30... Qd6 {[%clk 0:00:21.7]} 31. Rf3 {[%clk 0:00:15.8]} 31...
Qa3+ {[%clk 0:00:20.4]} 32. Kd4 {[%clk 0:00:15.9]} 32... c5+ {[%clk 0:00:19.7]}
33. Ke4 {[%clk 0:00:14.9]} 33... Qc3 {[%clk 0:00:18]} 34. Rfxe3 {[%clk
0:00:13.9]} 34... Qxc4+ {[%clk 0:00:18.3]} 35. Kf3 {[%clk 0:00:14.6]} 35... Qf7+
{[%clk 0:00:18.4]} 36. Kg3 {[%clk 0:00:14.3]} 36... c4 {[%clk 0:00:18.8]} 37. h4
{[%clk 0:00:13.5]} 37... Qg6+ {[%clk 0:00:17.9]} 38. Kh2 {[%clk 0:00:12.9]}
38... Qg4 {[%clk 0:00:17.9]} 39. g3 {[%clk 0:00:12.7]} 39... c3 {[%clk
0:00:17.2]} 40. Rc2 {[%clk 0:00:12.3]} 40... g5 {[%clk 0:00:13]} 41. Rexc3
{[%clk 0:00:13.2]} 41... gxh4 {[%clk 0:00:12.9]} 42. gxh4 {[%clk 0:00:13.5]}
42... Qxh4+ {[%clk 0:00:13.8]} 43. Kg2 {[%clk 0:00:13.5]} 43... Qg5+ {[%clk
0:00:14]} 44. Kf2 {[%clk 0:00:13.7]} 44... Qf4+ {[%clk 0:00:14.3]} 45. Ke2
{[%clk 0:00:13.9]} 45... Qe4+ {[%clk 0:00:14.8]} 46. Kf2 {[%clk 0:00:14.3]}
46... Qd4+ {[%clk 0:00:14.8]} 47. Kg2 {[%clk 0:00:14.4]} 47... h5 {[%clk
0:00:15.1]} 48. Kh2 {[%clk 0:00:11.7]} 48... Qf4+ {[%clk 0:00:14.9]} 49. Kg2
{[%clk 0:00:11.8]} 49... h4 {[%clk 0:00:15.3]} 50. Kh3 {[%clk 0:00:11.9]} 50...
a5 {[%clk 0:00:12.2]} 51. a3 {[%clk 0:00:11.5]} 51... Ka6 {[%clk 0:00:11.9]} 52.
Kg2 {[%clk 0:00:11.7]} 52... b6 {[%clk 0:00:12]} 53. Kh3 {[%clk 0:00:11.2]}
53... b5 {[%clk 0:00:10.1]} 54. Rc6+ {[%clk 0:00:10.6]} 54... Kb7 {[%clk
0:00:10.3]} 55. R6c3 {[%clk 0:00:10.6]} 55... b4 {[%clk 0:00:09.8]} 56. axb4
{[%clk 0:00:11]} 56... axb4 {[%clk 0:00:10.7]} 57. Rc4 {[%clk 0:00:01.3]} 57...
Qf3+ {[%clk 0:00:11.1]} 58. Kxh4 {[%clk 0:00:01.5]} 58... b3 {[%clk 0:00:11.6]}
0-1

[Event "*** Titled Tuesday Blitz"]
[Site "Chess.com"]
[Date "2020.05.12"]
[Round "8"]
[White "IMAghasiyevKamal"]
[Black "BAS8892"]
[Result "1/2-1/2"]
[WhiteElo "2547"]
[BlackElo "2713"]
[TimeControl "180+1"]
[EndTime "11:33:53 PDT"]
[Termination "Game drawn by repetition"]

1. d4 {[%clk 0:03:00.9]} 1... d5 {[%clk 0:02:59.5]} 2. c4 {[%clk 0:03:00.4]}
2... c6 {[%clk 0:02:59.4]} 3. Nf3 {[%clk 0:02:59.4]} 3... Nf6 {[%clk 0:02:58.4]}
4. e3 {[%clk 0:02:59.7]} 4... Bf5 {[%clk 0:02:57.4]} 5. Nc3 {[%clk 0:02:49.9]}
5... e6 {[%clk 0:02:57.1]} 6. Nh4 {[%clk 0:02:44.2]} 6... Bg6 {[%clk 0:02:56.6]}
7. Qb3 {[%clk 0:02:38.7]} 7... Qc7 {[%clk 0:02:49.3]} 8. Bd2 {[%clk 0:02:35.7]}
8... Nbd7 {[%clk 0:02:48.8]} 9. Rc1 {[%clk 0:02:32.9]} 9... Rc8 {[%clk
0:02:48.1]} 10. Be2 {[%clk 0:02:30.9]} 10... Be7 {[%clk 0:02:43.7]} 11. O-O
{[%clk 0:02:21]} 11... Qb8 {[%clk 0:02:31.1]} 12. Rfd1 {[%clk 0:02:09]} 12...
Ne4 {[%clk 0:02:25.2]} 13. Nxe4 {[%clk 0:01:48]} 13... Bxe4 {[%clk 0:02:22.9]}
14. Nf3 {[%clk 0:01:44.7]} 14... O-O {[%clk 0:02:17.7]} 15. Bb4 {[%clk
0:01:44.5]} 15... c5 {[%clk 0:01:58]} 16. Ba3 {[%clk 0:01:40.8]} 16... b6 {[%clk
0:01:50.3]} 17. cxd5 {[%clk 0:01:34.8]} 17... Bxd5 {[%clk 0:01:49.5]} 18. Qa4
{[%clk 0:01:32.4]} 18... Nf6 {[%clk 0:01:31.9]} 19. Ne5 {[%clk 0:01:30.3]} 19...
Bd6 {[%clk 0:01:28.7]} 20. h3 {[%clk 0:01:09.3]} 20... Bxe5 {[%clk 0:00:54.2]}
21. dxe5 {[%clk 0:01:09.3]} 21... Ne4 {[%clk 0:00:53.5]} 22. f3 {[%clk
0:01:01.6]} 22... Ng3 {[%clk 0:00:52.4]} 23. Ba6 {[%clk 0:01:01.4]} 23... Qxe5
{[%clk 0:00:37.7]} 24. e4 {[%clk 0:00:59.1]} 24... Bc6 {[%clk 0:00:32.4]} 25.
Qc2 {[%clk 0:00:51]} 25... Rcd8 {[%clk 0:00:30.2]} 26. Qf2 {[%clk 0:00:48.6]}
26... Nh5 {[%clk 0:00:18.8]} 27. Rxd8 {[%clk 0:00:43.9]} 27... Rxd8 {[%clk
0:00:17.9]} 28. b4 {[%clk 0:00:44.5]} 28... Nf4 {[%clk 0:00:14.5]} 29. bxc5
{[%clk 0:00:39.6]} 29... b5 {[%clk 0:00:14]} 30. Bb2 {[%clk 0:00:31.1]} 30...
Qg5 {[%clk 0:00:13.6]} 31. Kh2 {[%clk 0:00:31.4]} 31... Nxh3 {[%clk 0:00:11.2]}
32. Qg3 {[%clk 0:00:19.9]} 32... Rd2 {[%clk 0:00:07]} 33. Qxg5 {[%clk
0:00:16.8]} 33... Nxg5 {[%clk 0:00:06.5]} 34. Bc3 {[%clk 0:00:14.7]} 34... Rxa2
{[%clk 0:00:05.4]} 35. Ra1 {[%clk 0:00:12.5]} 35... Nxf3+ {[%clk 0:00:04.3]} 36.
Kg3 {[%clk 0:00:12.7]} 36... Rxa1 {[%clk 0:00:04.2]} 37. Bxa1 {[%clk 0:00:12.3]}
37... Ng5 {[%clk 0:00:04.7]} 38. Kf4 {[%clk 0:00:08.5]} 38... f6 {[%clk
0:00:04.6]} 39. e5 {[%clk 0:00:08.4]} 39... Kf7 {[%clk 0:00:05]} 40. g4 {[%clk
0:00:08.2]} 40... h6 {[%clk 0:00:04.9]} 41. Bc8 {[%clk 0:00:07.4]} 41... Ne4
{[%clk 0:00:04.9]} 42. Bb2 {[%clk 0:00:07]} 42... a5 {[%clk 0:00:04.7]} 43. Ke3
{[%clk 0:00:06.1]} 43... Nxc5 {[%clk 0:00:04.7]} 44. exf6 {[%clk 0:00:06.2]}
44... gxf6 {[%clk 0:00:04.5]} 45. Bd4 {[%clk 0:00:07.1]} 45... Nd7 {[%clk
0:00:03.8]} 46. Bc3 {[%clk 0:00:05.6]} 46... e5 {[%clk 0:00:03.9]} 47. Bxa5
{[%clk 0:00:05.1]} 47... Ke7 {[%clk 0:00:04.4]} 48. Bb4+ {[%clk 0:00:04.4]}
48... Kd8 {[%clk 0:00:04.7]} 49. Ba6 {[%clk 0:00:05.1]} 49... Kc7 {[%clk
0:00:05]} 50. Ba5+ {[%clk 0:00:05.2]} 50... Kd6 {[%clk 0:00:05.1]} 51. Bd8
{[%clk 0:00:05.1]} 51... Nc5 {[%clk 0:00:05.1]} 52. Bc8 {[%clk 0:00:04.5]} 52...
Nd7 {[%clk 0:00:05.4]} 53. Ba6 {[%clk 0:00:04.2]} 53... Ke6 {[%clk 0:00:05.4]}
54. Bc8 {[%clk 0:00:03.6]} 54... Kd6 {[%clk 0:00:05.1]} 55. Ba6 {[%clk
0:00:03.5]} 1/2-1/2

[Event "*** Titled Tuesday Blitz"]
[Site "Chess.com"]
[Date "2020.05.12"]
[Round "8"]
[White "sopo-tereladze"]
[Black "Unknown_IM"]
[Result "1/2-1/2"]
[WhiteElo "2404"]
[BlackElo "2549"]
[TimeControl "180+1"]
[EndTime "11:33:56 PDT"]
[Termination "Game drawn - insufficient material"]

1. d4 {[%clk 0:03:00.9]} 1... d5 {[%clk 0:02:59.5]} 2. Nf3 {[%clk 0:02:59.4]}
2... Nf6 {[%clk 0:02:58]} 3. Bf4 {[%clk 0:02:59.4]} 3... c5 {[%clk 0:02:56]} 4.
e3 {[%clk 0:02:57.5]} 4... Nc6 {[%clk 0:02:55.4]} 5. c3 {[%clk 0:02:56.8]} 5...
Qb6 {[%clk 0:02:55]} 6. Qb3 {[%clk 0:02:55.1]} 6... c4 {[%clk 0:02:54.2]} 7.
Qxb6 {[%clk 0:02:53.8]} 7... axb6 {[%clk 0:02:55.1]} 8. Na3 {[%clk 0:02:51.8]}
8... e6 {[%clk 0:02:53.6]} 9. Nb5 {[%clk 0:02:49.6]} 9... Ra5 {[%clk 0:02:54.1]}
10. a4 {[%clk 0:02:43.9]} 10... Bd7 {[%clk 0:02:53.1]} 11. Bc7 {[%clk
0:02:39.3]} 11... Ra6 {[%clk 0:02:47.3]} 12. Bg3 {[%clk 0:02:38.7]} 12... Ra5
{[%clk 0:02:42.3]} 13. Be2 {[%clk 0:02:38]} 13... Na7 {[%clk 0:02:37.9]} 14.
Nc7+ {[%clk 0:02:35.1]} 14... Kd8 {[%clk 0:02:35.9]} 15. Na8 {[%clk 0:02:32.1]}
15... Nc8 {[%clk 0:02:05.7]} 16. Bc7+ {[%clk 0:02:26.1]} 16... Ke8 {[%clk
0:02:05.7]} 17. Nxb6 {[%clk 0:02:24.4]} 17... Nxb6 {[%clk 0:02:05.7]} 18. Bxb6
{[%clk 0:02:25.3]} 18... Rxa4 {[%clk 0:02:06.2]} 19. O-O {[%clk 0:02:19.5]}
19... Ra6 {[%clk 0:01:44.1]} 20. Rxa6 {[%clk 0:02:15.5]} 20... bxa6 {[%clk
0:01:45]} 21. Ne5 {[%clk 0:02:12.9]} 21... Bb5 {[%clk 0:01:43.3]} 22. Ra1 {[%clk
0:02:09.7]} 22... Bd6 {[%clk 0:01:42.6]} 23. Ba5 {[%clk 0:02:03.3]} 23... Bxe5
{[%clk 0:01:36.2]} 24. dxe5 {[%clk 0:02:04.2]} 24... Nd7 {[%clk 0:01:36.8]} 25.
f4 {[%clk 0:02:01.1]} 25... Nc5 {[%clk 0:01:36.6]} 26. Bb4 {[%clk 0:01:53.8]}
26... Nb3 {[%clk 0:01:36.2]} 27. Rd1 {[%clk 0:01:50.9]} 27... Kd7 {[%clk
0:01:35.8]} 28. g4 {[%clk 0:01:45.8]} 28... Kc6 {[%clk 0:01:22.5]} 29. Bf3
{[%clk 0:01:41.8]} 29... Nc5 {[%clk 0:01:10.4]} 30. Bxc5 {[%clk 0:01:39.2]}
30... Kxc5 {[%clk 0:01:11.3]} 31. e4 {[%clk 0:01:37.3]} 31... Bc6 {[%clk
0:01:11.3]} 32. exd5 {[%clk 0:01:36.2]} 32... Bxd5 {[%clk 0:01:07]} 33. Bxd5
{[%clk 0:01:35.4]} 33... exd5 {[%clk 0:01:07.8]} 34. Kf2 {[%clk 0:01:31.8]}
34... Rb8 {[%clk 0:01:08]} 35. Rd2 {[%clk 0:01:31.4]} 35... a5 {[%clk
0:01:08.6]} 36. f5 {[%clk 0:01:24.7]} 36... a4 {[%clk 0:01:08.3]} 37. Ke1 {[%clk
0:01:21.3]} 37... Re8 {[%clk 0:01:03.6]} 38. Re2 {[%clk 0:01:20.3]} 38... d4
{[%clk 0:01:04.1]} 39. Kd2 {[%clk 0:01:16]} 39... d3 {[%clk 0:01:03.1]} 40. Re4
{[%clk 0:01:15.3]} 40... Kd5 {[%clk 0:00:58.8]} 41. Rd4+ {[%clk 0:01:11.5]}
41... Kc5 {[%clk 0:00:59.4]} 42. Re4 {[%clk 0:01:11]} 42... Rb8 {[%clk
0:00:57.9]} 43. Kc1 {[%clk 0:01:09.1]} 43... Rb3 {[%clk 0:00:21.2]} 44. e6
{[%clk 0:01:04.7]} 44... fxe6 {[%clk 0:00:21.5]} 45. fxe6 {[%clk 0:01:05.1]}
45... Rb8 {[%clk 0:00:22]} 46. e7 {[%clk 0:01:02.1]} 46... Re8 {[%clk
0:00:21.4]} 47. Kd2 {[%clk 0:01:01]} 47... Kd5 {[%clk 0:00:21.8]} 48. Re1 {[%clk
0:00:57]} 48... Kd6 {[%clk 0:00:21]} 49. Re4 {[%clk 0:00:56.8]} 49... Rxe7
{[%clk 0:00:19.2]} 50. Rxc4 {[%clk 0:00:56.5]} 50... Re2+ {[%clk 0:00:19.3]} 51.
Kxd3 {[%clk 0:00:55.4]} 51... Rxb2 {[%clk 0:00:20.1]} 52. Rxa4 {[%clk
0:00:51.8]} 52... Rxh2 {[%clk 0:00:20.1]} 53. Ra7 {[%clk 0:00:50.4]} 53... g5
{[%clk 0:00:19.1]} 54. Rg7 {[%clk 0:00:45.5]} 54... h6 {[%clk 0:00:18.2]} 55.
Ke4 {[%clk 0:00:44.5]} 55... Rf2 {[%clk 0:00:17.7]} 56. Rg6+ {[%clk 0:00:42.8]}
56... Kc5 {[%clk 0:00:18]} 57. Rxh6 {[%clk 0:00:43]} 57... Rf4+ {[%clk 0:00:18]}
58. Kd3 {[%clk 0:00:40.7]} 58... Rxg4 {[%clk 0:00:18.4]} 59. Rg6 {[%clk
0:00:39.6]} 59... Rg3+ {[%clk 0:00:18.5]} 60. Kc2 {[%clk 0:00:36.9]} 60... Kc4
{[%clk 0:00:14]} 61. Kd2 {[%clk 0:00:34.1]} 61... Rd3+ {[%clk 0:00:12.5]} 62.
Ke2 {[%clk 0:00:31.8]} 62... Rd5 {[%clk 0:00:13]} 63. Kf3 {[%clk 0:00:25]} 63...
Kxc3 {[%clk 0:00:12.1]} 64. Kg4 {[%clk 0:00:24.3]} 64... Kd4 {[%clk 0:00:12.4]}
65. Rxg5 {[%clk 0:00:23.8]} 65... Rxg5+ {[%clk 0:00:13.3]} 66. Kxg5 {[%clk
0:00:24.4]} 1/2-1/2